[Event "1st Kallai Gabor Memorial 2022"]
[Site "Budapest"]
[Date "2022.11.29"]
[Round "5.4"]
[White "Troff, Kayden"]
[Black "Kozak, Adam"]
[Result "0-1"]
[ECO "C29"]
[WhiteElo "2483"]
[BlackElo "2538"]
[Annotator "TA"]
[PlyCount "104"]
[EventDate "2022.11.28"]
[EventType "tourn"]
[EventCountry "HUN"]
[SourceTitle "playchess.com"]
[Source "ChessBase"]
[SourceQuality "1"]
[TimeControl "1500+5"]

{[%evp 9,104,-32,-16,-12,-10,-16,0,0,0,0,0,0,0,0,0,-3,0,-40,-38,-50,-19,-98,-90,-94,-97,-110,-104,-188,-177,-173,-140,-140,-143,-136,-95,-153,-126,-152,-107,-168,-165,-173,-172,-184,-191,-214,-184,-181,-185,-181,-181,-187,-179,-178,-171,-197,-189,-207,-212,-212,-177,-184,-184,-184,-184,-184,-184,-234,-189,-235,-226,-228,-226,-408,-408,-533,-525,-681,-666,-819,-806,-758,-769,-1158,-1147,-1418,-1306,-29986,-12836,-12835,-12812,-12843,-12843,-12844,-12840,-12841,-12837]} 1. e4 {[%emt 0:00:08]} e5 {[%emt 0:00:43]} 2. Nc3 {[%emt 0:00:03]} Nf6 {[%emt 0:00:13]} 3. f4 {[%emt 0:00:05]} d5 {[%emt 0:00:43]} 4. fxe5 {[%emt 0:00:04]} Nxe4 {[%emt 0:00:03]} 5. Qf3 {[%emt 0:00:05]} Nc6 {[%emt 0:01:40]} (5... f5 $5 {[%cal Rf8c5]}) 6. Bb5 {[%emt 0:00:11] C29: Vienna Game: 2...Nf6 3 f4.} Nxc3 {[%emt 0:00:01]} 7. dxc3 {[%emt 0:00:12]} Qh4+ {[%emt 0:00:02]} (7... a6 $5 {[%cal Ra6b5]} 8. Bxc6+ bxc6 $11) 8. g3 {[%emt 0:00:23] The position is equal.} Qe4+ {[%emt 0:00:08]} 9. Qxe4 {[%emt 0:00:03]} dxe4 {[%emt 0:00:02]} 10. Ne2 {[%emt 0:00:51]} Bd7 {[%emt 0:00:13]} 11. Bxc6 {[%emt 0:01:32]} Bxc6 {[%emt 0:00:07]} 12. Rf1 {[%emt 0:00:13]} Bc5 {[%emt 0:03:51] [#]} 13. Rf4 $146 {[%emt 0:01:24]} ({Predecessor:} 13. Nd4 Bd5 14. Nf5 g6 15. Ng7+ Kd7 16. Bg5 Kc8 17. O-O-O Bc4 18. Rfe1 h6 19. Rxe4 hxg5 20. Rxc4 {1-0 (31) Can,I (2445)-Bailet,P (2508) Vaujany 2022}) 13... Rd8 {[%emt 0:01:49][%cal Ba8d8,Bd8d4,Bd4c4][%mdl 32]} 14. b4 {[%emt 0:07:20]} Bb6 {[%emt 0:00:15]} 15. c4 {[%emt 0:00:44] [#]} (15. a4 $11 {remains equal.} a6 16. c4) 15... Bd4 $1 $17 {[%emt 0:00:46] Black is more active.} 16. Nxd4 {[%emt 0:04:02]} Rxd4 {[%emt 0:00:02]} 17. Rg4 {[%emt 0:01:39]} Rg8 {[%emt 0:01:20]} 18. c3 {[%emt 0:02:35]} (18. Bg5 $17) 18... Rxc4 $19 {[%emt 0:00:29]} 19. Bd2 {[%emt 0:00:03]} Bd5 {[%emt 0:02:43][%cal Oe4e3]} 20. Rh4 {[%emt 0:00:12] Prevents e3.} h6 {[%emt 0:00:41]} 21. O-O-O {[%emt 0:00:15]} Be6 {[%emt 0:01:56][%cal Oa7a5]} 22. Kb2 {[%emt 0:01:18]} (22. Re1 $142) 22... b6 {[%emt 0:02:35][%cal Bb7b6,Bb6c5][%mdl 32]} 23. Be3 {[%emt 0:00:45]} Ke7 {[%emt 0:00:32]} 24. Rf4 {[%emt 0:01:43]} (24. Rd4 $17 {was necessary.}) 24... c5 {[%emt 0:01:01]} 25. a3 {[%emt 0:00:24]} Rc8 {[%emt 0:00:32] [#] Strongly threatening ...cxb4.} 26. bxc5 {[%emt 0:00:15]} bxc5 {[%emt 0:00:02]} 27. Rd6 {[%emt 0:00:11]} Rb8+ {[%emt 0:01:55]} 28. Kc2 {[%emt 0:00:04]} Rb6 {[%emt 0:00:07] Against Ra6} 29. Rxb6 {[%emt 0:00:18]} axb6 {[%emt 0:00:02][%mdl 4096] Endgame KRB-KRB} 30. Rf1 {[%emt 0:00:02]} Kd7 {[%emt 0:00:53]} 31. Rd1+ {[%emt 0:00:01]} Kc7 {[%emt 0:00:01]} 32. Kb2 {[%emt 0:00:09]} Ra4 {[%emt 0:00:05]} 33. Rd2 {[%emt 0:00:07]} Ra5 {[%emt 0:00:02]} 34. Rd6 {[%emt 0:00:08]} Ra8 {[%emt 0:00:41]} 35. h4 {[%emt 0:00:02]} Kb7 {[%emt 0:00:11]} 36. Bf4 {[%emt 0:00:12]} Ka6 {[%emt 0:00:21]} 37. Rd1 {[%emt 0:00:12]} Kb5 {[%emt 0:00:02]} 38. Rd6 {[%emt 0:00:06]} (38. Re1 $142) 38... Rb8 {[%emt 0:01:08]} 39. Kc2 {[%emt 0:00:04]} (39. Rd2 $142) 39... Kc4 {[%emt 0:00:04]} 40. Be3 {[%emt 0:00:01]} Ra8 {[%emt 0:00:06]} 41. Kb2 {[%emt 0:00:04]} (41. Bc1 {only move.}) 41... Ra5 {[%emt 0:00:08]} 42. Rxb6 {[%emt 0:00:17]} Kd3 {[%emt 0:00:01]} 43. Bf4 {[%emt 0:00:01]} e3 {[%emt 0:00:06][%cal Oa5b5]} 44. Rd6+ {[%emt 0:00:02]} Ke2 {[%emt 0:00:12]} 45. Rb6 {[%emt 0:00:03]} Kf2 {[%emt 0:00:04]} 46. c4 {[%emt 0:00:10]} Bxc4 {[%emt 0:00:11] White must now prevent ...Be6.} 47. Kc3 {[%emt 0:00:09]} Be6 {[%emt 0:00:01] ( -> ...e2)} ({Not} 47... Rxa3+ 48. Kxc4 e2 49. Rb2 $17) 48. Rb2+ {[%emt 0:00:01]} Kf3 {[%emt 0:00:01]} (48... e2 $142 49. a4 Rxa4 50. Rb1 Ra3+ 51. Kd2 Ra2+ 52. Kc3 e1=Q+ 53. Rxe1 Kxe1 54. Bc1 Kd1 55. Kd3 Kxc1 56. g4 c4+ 57. Kc3 Ra3+ 58. Kd4 c3 59. g5 c2 60. Kc5 Kd2 61. Kd6 c1=Q 62. g6 Ra7 63. gxf7 Qc7+ 64. Kxe6 Qd7#) 49. Rb1 {[%emt 0:00:06] Black is clearly winning.} Rxa3+ {[%emt 0:00:01]} 50. Kb2 {[%emt 0:00:09]} Rb3+ {[%emt 0:00:01]} 51. Kc2 {[%emt 0:00:01]} Rxb1 {[%emt 0:00:02]} 52. Kxb1 {[%emt 0:00:01]} Kf2 {[%emt 0:00:01] Weighted Error Value: White=0.53/Black=0.19 (very precise)} 0-1

[Event "1st Kallai Gabor Memorial 2022"]
[Site "Budapest"]
[Date "2022.11.29"]
[Round "5.5"]
[White "Gaal, Zsoka"]
[Black "Beliavsky, Alexander G"]
[Result "0-1"]
[ECO "A06"]
[WhiteElo "2286"]
[BlackElo "2487"]
[Annotator "TA"]
[PlyCount "178"]
[EventDate "2022.11.28"]
[EventType "tourn"]
[EventCountry "HUN"]
[SourceTitle "playchess.com"]
[Source "ChessBase"]
[SourceQuality "1"]
[TimeControl "1500+5"]

{[%evp 9,178,13,16,-21,-19,-14,-4,-30,-19,-35,0,-5,0,-12,-2,-14,-6,-30,-22,-18,-23,-58,-54,-61,0,-12,0,-25,-31,-128,-6,-12,-11,-17,0,-97,-98,-134,-124,-137,-129,-136,-43,-60,-64,-53,-65,-48,-54,-91,-14,-14,-12,-12,0,0,0,0,0,0,0,0,45,44,45,-168,-168,-168,-168,-225,-160,-153,-153,-169,-184,-161,-83,-158,-145,-131,-135,-258,-182,-321,-299,-566,-595,-618,-618,-618,-597,-618,-618,-618,-600,-555,-496,-519,-541,-612,-595,-566,-552,-526,-519,-519,-435,-5073,-1091,-29984,-592,-773,-592,-592,-510,-510,-261,-1825,-1675,-1081,-589,-589,-582,-582,-568,-568,-317,-8340,-8340,-8751,-5005,-9835,-9160,-5414,-5348,-2393,-1475,-10805,-11527,-12565,-11713,-11057,-9238,-8565,-503,-6643,-8016,-5097,-2641,-11655,-10500,-11045,-10206,-11655,-29940,-29979,-29980,-29981,-29982,-29982,-29983,-29983,-29984,-29983,-29981,-29981,-29981,-29991,-29983,-29983,-29979]} 1. Nf3 {[%emt 0:00:07]} d5 {[%emt 0:00:07]} 2. g3 {[%emt 0:00:02]} c6 {[%emt 0:00:02]} 3. Bg2 {[%emt 0:00:03]} Bg4 {[%emt 0:00:02]} 4. O-O {[%emt 0:00:06]} Nd7 {[%emt 0:00:02][%cal Bb8d7,Bd7e5,Be5f3][%mdl 32]} 5. h3 {[%emt 0:00:02]} Bh5 6. c4 {[%emt 0:00:16] A07: Réti Opening: New York and Capablanca Systems.} Bxf3 {[%emt 0:00:10]} 7. Bxf3 {[%emt 0:00:40]} Ne5 {[%emt 0:00:00]} 8. Qb3 {The position is equal.} Nxf3+ {[%emt 0:03:40]} 9. Qxf3 {[%emt 0:01:38] [#]} e6 $146 ({Predecessor:} 9... dxc4 10. Na3 Qd5 11. Qc3 Nf6 12. Qxc4 Qd7 13. Kg2 e6 14. b3 Be7 15. d3 b5 {0-1 (43) Gukesh,D (2457)-Murzin,V (2340) Santiago de Compostela 2018}) 10. d3 {[%emt 0:00:56]} Nf6 {[%emt 0:00:14]} 11. Nc3 Be7 {[%emt 0:01:11]} 12. cxd5 {[%emt 0:01:58]} cxd5 {[%emt 0:00:34]} 13. e4 {[%emt 0:01:09]} d4 {[%emt 0:00:26]} 14. Ne2 {[%emt 0:01:12]} e5 {[%emt 0:00:01]} 15. Qf5 {[%emt 0:02:28]} Nd7 {[%emt 0:00:02]} 16. f4 {[%emt 0:01:46]} O-O {[%emt 0:00:39]} (16... g6 $15 17. Qg4 h5) 17. fxe5 $11 {[%emt 0:00:36]} g6 $1 {[%emt 0:00:02] Inhibits e6.} 18. Qf4 {[%emt 0:00:16]} Rc8 {[%emt 0:00:02]} 19. Bd2 {[%emt 0:01:54]} ({White should play} 19. Qd2 $15) 19... Qb6 {[%emt 0:00:41]} (19... Rc2 $17 {aiming for ...g5.} 20. Nxd4 Rxd2 21. Qxd2 Bc5) 20. Rac1 {[%emt 0:00:25] Hoping for Rxc8.} Rxc1 {[%emt 0:01:20]} (20... Rc5 {with more complications.} 21. b3 Nxe5 22. Rxc5 Qxc5 23. Bb4 Nxd3 24. Bxc5 Nxf4 25. Bxe7 Nxe2+ 26. Kf2 Re8) 21. Bxc1 Qa6 (21... Qc5 $5 {[%cal Rd7e5]}) 22. Rd1 {[%emt 0:04:30]} (22. e6 $11 {remains equal.} fxe6 23. Qc7) 22... Qxa2 $17 {[%emt 0:02:17]} 23. Qf1 Nxe5 {[%emt 0:01:52]} 24. Nf4 {[%emt 0:00:45]} f5 {[%emt 0:01:17] Black has more active pieces.} 25. Nd5 {[%emt 0:00:21]} Bd6 {[%emt 0:00:37]} (25... Bd8 $1 $17 {...fxe4 is the strong threat.} 26. Bh6 Re8) 26. Bh6 $15 {[%emt 0:00:40]} Rf7 {[%emt 0:01:17]} 27. Rc1 {[%emt 0:00:06]} Nc6 (27... Qxb2 $2 28. Rc8+ Bf8 29. Ne7+ $1 {[%mdl 512]} (29. Bxf8 Rxf8 30. Nf6+ Kg7 $11) 29... Kh8 30. Bxf8 Rxf8 31. Rxf8+ $18) 28. Qe2 {[%emt 0:01:42][%cal Oe4e5]} Bf8 $1 {[%emt 0:01:31] Prevents e5.} (28... Bxg3 $2 {[#]} 29. exf5 $1 Bd6 30. Qe6 $18) 29. Bg5 {[%emt 0:01:18]} h6 {[%emt 0:02:06]} (29... Bg7 $17 {Black wants to play ...fxe4.} 30. Bf4 Qb3) 30. Nf6+ $1 $11 {[%emt 0:00:06]} Kg7 {[%emt 0:00:25]} 31. Ne8+ {[%emt 0:00:26]} Kh8 {[%emt 0:01:37]} (31... Kh7 $5 32. Nf6+ $8 Kh8 33. exf5 Re7 $11) 32. Bf6+ {[%emt 0:00:20]} Kh7 {[%emt 0:00:15][%cal Bh8h7,Bh7g7,Bg7f7,Bf7f6][%mdl 32]} 33. exf5 {[%emt 0:00:04]} gxf5 {[%emt 0:00:07]} 34. Rc4 Qb1+ {[%emt 0:03:01]} 35. Kg2 {[%emt 0:01:00]} Bg7 {[%emt 0:00:27]} 36. Bxg7 Re7 {[%emt 0:00:01]} 37. Nf6+ $2 {[%emt 0:01:08]} (37. Qd2 $14 {stays ahead.} Rxe8 38. Qxh6+ (38. Bxd4 Re1 $11) 38... Kg8 39. Qh8+ (39. Bxd4 Nxd4 40. Qg6+ Kf8 $11) 39... Kf7 40. Qh5+ Ke7 41. Qxf5 (41. Bxd4 Qxd3 $11) 41... Qxb2+ 42. Kf3) 37... Kxg7 $19 {[%emt 0:00:11] Really sharp!} 38. Nh5+ Kf7 {[%emt 0:00:16]} 39. Qf1 {[%emt 0:00:13]} (39. Qc2 $142 Re1 40. Qxb1 Rxb1 41. Rc2) 39... Qxf1+ {[%emt 0:00:21]} 40. Kxf1 {[%mdl 4096] Endgame KRN-KRN} Re3 {[%emt 0:00:02]} 41. Nf4 {[%emt 0:00:09]} Rxg3 {[%emt 0:00:03] Threatens to win with ...Rf3+.} 42. Kf2 {[%emt 0:00:04] Inhibits Rf3+.} Rg8 {[%emt 0:00:12]} (42... Re3 $19 {Strongly threatening ...Re5.} 43. Rxd4 Nxd4 44. Kxe3 Nb5) 43. Rc5 {[%emt 0:00:01]} (43. b4 $142) 43... Kf6 $17 {[%emt 0:00:09]} 44. Nd5+ Kg5 {[%emt 0:00:10]} 45. b4 {[%emt 0:00:11]} (45. Rc1 $17 {was necessary.} Kh4 46. Nf4) 45... a6 {[%cal Ba7a6,Ba6a5,Ba5b4,Bb4b3,Bb3b2][%mdl 32]} 46. b5 {[%emt 0:00:05]} (46. Kg3 $142) 46... Ne5 $19 {[%emt 0:00:17]} 47. Nb4 {[%emt 0:00:05]} (47. h4+ Kxh4 48. Nf4) 47... a5 {[%emt 0:00:26]} 48. Rxe5 {[%emt 0:00:07]} axb4 {[%emt 0:00:04] KR-KR} 49. Rd5 {[%emt 0:00:01]} Rc8 {[%emt 0:00:19]} 50. Rxd4 b3 {[%emt 0:00:00]} 51. Rb4 {[%emt 0:00:08]} Rc2+ {[%emt 0:00:05]} 52. Kf3 {[%emt 0:00:01]} b2 {[%emt 0:00:00]} 53. d4 {[%emt 0:00:04]} Kf6 {[%emt 0:00:02]} 54. b6 {[%emt 0:00:03]} Ke6 {[%emt 0:00:02]} 55. Rb5 {[%emt 0:00:01]} Kd6 {[%emt 0:00:02]} 56. Kf4 {[%emt 0:00:12]} Kc6 {[%emt 0:00:03]} 57. Rb4 {[%emt 0:00:01]} Rf2+ {[%emt 0:00:02]} 58. Ke5 {[%emt 0:00:01]} (58. Ke3 $142 Rh2 59. Kf3) 58... f4 {[%emt 0:00:08]} 59. d5+ {[%emt 0:00:04]} Kd7 {[%emt 0:00:01]} (59... Kc5 $142 60. Rb3 Kc4 61. Rxb2 Rxb2 62. Ke4 f3 63. Kxf3 Kxd5 64. h4 Rxb6 65. Kg4 Rf6 66. Kh5 b5 67. Kg4 b4 68. Kg3 b3 69. h5 b2 70. Kh4 b1=Q 71. Kh3 Qh1+ 72. Kg4 Qg2+ 73. Kh4 Rf4#) 60. h4 {[%emt 0:00:14]} f3 {[%emt 0:00:02]} 61. Kf4 {[%emt 0:00:03]} Kd6 {[%emt 0:00:03]} 62. Rb5 {[%emt 0:00:02]} h5 {[%emt 0:00:25] And now ...Rh2 would win.} 63. Ke3 $2 {[%emt 0:00:05]} (63. Kg3 Rd2 64. Kxf3) 63... Rh2 {[%emt 0:00:05]} 64. Kxf3 {[%emt 0:00:05]} Rh3+ {[%emt 0:00:08]} ({Not} 64... Rxh4 65. Rxb2 Kxd5 66. Rg2 $17) 65. Kf4 {[%emt 0:00:20]} Rxh4+ {[%emt 0:00:02]} 66. Kg3 {[%emt 0:00:05]} Rd4 {[%emt 0:00:05]} ({And not} 66... Rg4+ 67. Kh3 $17) 67. Rxb2 {[%emt 0:00:04]} Rxd5 {[%emt 0:00:03]} 68. Kf4 $2 {[%emt 0:00:06]} (68. Rc2 Rb5 69. Kh4) 68... Kc6 {[%emt 0:00:02]} 69. Ke4 {[%emt 0:00:06]} Rb5 {[%emt 0:00:01]} 70. Rc2+ {[%emt 0:00:02]} Kxb6 71. Kd4 {[%emt 0:00:07]} Rg5 {[%emt 0:00:04]} 72. Rb2+ {[%emt 0:00:01]} Kc6 {[%emt 0:00:00]} 73. Rf2 {[%emt 0:00:02]} Rg4+ {[%emt 0:00:05]} 74. Kc3 {[%emt 0:00:01]} h4 {[%emt 0:00:01]} 75. Rf6+ {[%emt 0:00:01]} Kc5 {[%emt 0:00:01]} 76. Rf5+ {[%emt 0:00:01]} Kb6 {[%emt 0:00:01] White must now prevent ...Ka6.} 77. Rh5 {[%emt 0:00:00]} (77. Rf7 $142 Ka6 78. Rf8) 77... Ka6 78. Kb3 {[%emt 0:00:07]} b5 {[%emt 0:00:03]} 79. Kc3 {[%emt 0:00:02]} Ka5 {[%emt 0:00:01] ( -> ...Ka4)} 80. Kb3 {[%emt 0:00:00]} Rg3+ {[%emt 0:00:05]} 81. Kb2 h3 82. Rh8 {[%emt 0:00:13] Black mates.} Ka4 {[%emt 0:00:00]} 83. Kc2 {[%emt 0:00:14]} Rg2+ {[%emt 0:00:00]} 84. Kc3 {[%emt 0:00:02]} b4+ {[%emt 0:00:01][%cal Bb5b4,Bb4b3][%mdl 32]} 85. Kc4 {[%emt 0:00:01]} Rc2+ {[%emt 0:00:04]} 86. Kd3 {[%emt 0:00:04]} Rc3+ {[%emt 0:00:02]} 87. Kd4 {[%emt 0:00:02]} Kb3 {[%emt 0:00:01]} 88. Rh4 {[%emt 0:00:06]} Kb2 {[%emt 0:00:08]} 89. Rh8 {[%emt 0:00:10]} b3 {Weighted Error Value: White=0.57/Black=0.29 (precise)} 0-1

[Event "1st Kallai Gabor Memorial 2022"]
[Site "Budapest"]
[Date "2022.11.29"]
[Round "6.1"]
[White "Motylev, Alexander"]
[Black "Beliavsky, Alexander G"]
[Result "1-0"]
[ECO "C50"]
[WhiteElo "2628"]
[BlackElo "2487"]
[Annotator "TA"]
[PlyCount "104"]
[EventDate "2022.11.28"]
[EventType "tourn"]
[EventCountry "HUN"]
[SourceTitle "playchess.com"]
[Source "ChessBase"]
[SourceQuality "1"]
[TimeControl "1500+5"]

{[%evp 10,104,12,13,20,10,20,18,18,18,22,18,27,22,34,27,36,33,28,34,43,37,41,18,31,22,74,86,82,85,78,73,98,36,45,45,49,54,78,70,83,66,99,66,200,167,215,246,248,248,220,219,257,246,274,287,243,279,287,287,270,220,558,270,603,510,614,588,549,525,29947,29947,29943,29939,4602,12196,29955,9487,29962,29963,29964,29965,29966,29966,29966,29966,29966,29967,10370,4627,29976,29977,29977,29978,29978,29979,29979]} 1. e4 {[%emt 0:00:09]} e5 {[%emt 0:00:06]} 2. Nf3 {[%emt 0:00:02]} Nc6 {[%emt 0:00:00]} 3. Bc4 {[%emt 0:00:05]} Bc5 {[%emt 0:00:11]} 4. d3 {[%emt 0:00:07]} Nf6 {[%emt 0:00:08]} 5. Nc3 {[%emt 0:00:06]} d6 {[%emt 0:00:43]} 6. Na4 {[%emt 0:00:17]} Bb6 {[%emt 0:00:29] C50: Hungarian Defence and Giuoco Pianissimo.} 7. a3 {[%emt 0:00:03]} Be6 {[%emt 0:00:23]} 8. Bxe6 {[%emt 0:00:10]} fxe6 {[%emt 0:00:02] The position is equal.} 9. O-O {[%emt 0:00:06]} O-O {[%emt 0:00:25]} 10. b4 {[%emt 0:00:02] [#]} Nd4 $146 {[%emt 0:00:30]} ({Predecessor:} 10... Qe8 11. c3 Qh5 12. Ra2 h6 13. Re1 Rf7 14. h3 Raf8 {½-½ (14) Erdos,V (2604)-Moroni,L (2584) Corte 2022}) 11. Ng5 {[%emt 0:00:16]} h6 {[%emt 0:00:35]} 12. c3 {[%emt 0:00:11]} hxg5 {[%emt 0:00:20]} 13. Nxb6 {[%emt 0:00:02]} axb6 {[%emt 0:00:22]} 14. cxd4 {[%emt 0:00:02]} exd4 {[%emt 0:03:26]} 15. Bxg5 {[%emt 0:00:02]} Qe8 {[%emt 0:01:04]} 16. f4 c5 {[%emt 0:01:56]} 17. Qb3 {[%emt 0:01:48]} Qf7 {[%emt 0:00:54]} (17... b5 $11) 18. Bxf6 {[%emt 0:03:18]} Qxf6 {[%emt 0:01:01]} 19. bxc5 {[%emt 0:00:23]} bxc5 {[%emt 0:00:01]} 20. Qxb7 {[%emt 0:00:14]} Rfb8 {[%emt 0:00:38]} 21. Qc7 {[%emt 0:00:26] White is more active.} (21. Qc6 $16) 21... Qd8 $1 $14 {[%emt 0:00:09]} 22. Qxd8+ {[%emt 0:00:09]} Rxd8 {[%emt 0:00:01][%mdl 4096] Endgame KRR-KRR} 23. Rfb1 {[%emt 0:02:03]} Rd7 {[%emt 0:00:19]} 24. Rb6 {[%emt 0:02:18]} Ra4 {[%emt 0:00:21]} 25. Kf2 {[%emt 0:00:39]} Kf7 {[%emt 0:00:17]} 26. Kf3 {[%emt 0:02:20]} Rda7 {[%emt 0:00:50] Loses the game.} ({Black should play} 26... d5 $14) 27. Rxd6 $18 {[%emt 0:00:47]} Rxa3 {[%emt 0:00:10] [#]} (27... Rb7 $142 28. f5 e5) 28. Rd7+ $3 {[%emt 0:00:14][%mdl 512]} Rxd7 {[%emt 0:00:05]} 29. Rxa3 {[%emt 0:00:01] KR-KR} Rb7 {[%emt 0:00:35]} 30. h4 {[%emt 0:00:20]} Rb1 {[%emt 0:00:06]} 31. Kg4 {[%emt 0:01:19]} Re1 {[%emt 0:00:54]} 32. Ra7+ {[%emt 0:00:25]} Kf8 {[%emt 0:00:01]} 33. Rc7 {[%emt 0:01:19] Against c4} Re3 {[%emt 0:00:06]} 34. Rxc5 {[%emt 0:00:09]} Rxd3 {[%emt 0:00:01]} 35. Rc4 {[%emt 0:01:09] Strongly threatening e5.} Rd1 $2 {[%emt 0:03:24]} (35... Rd2 36. g3 Rd3) 36. Kg5 {[%emt 0:00:45]} d3 $2 {[%emt 0:01:34]} (36... Kf7 37. Ra4 Ke8) 37. Rd4 {[%emt 0:00:30]} e5 {[%emt 0:03:18]} 38. fxe5 {[%emt 0:00:50]} Ke7 {[%emt 0:00:05]} 39. Rd6 {[%emt 0:00:53]} d2 {[%emt 0:00:51]} 40. h5 {[%emt 0:01:21]} Kf7 {[%emt 0:00:09]} 41. Rd5 {[%emt 0:01:13]} Ke6 {[%emt 0:00:58] [#]} 42. Kg6 $1 {[%emt 0:00:04]} Re1 {[%emt 0:00:13]} 43. Rd6+ {[%emt 0:01:06]} (43. Rxd2 $142 Rxe4 44. Kxg7 Rg4+ 45. Kf8 Rf4+ 46. Ke8 Kxe5 47. g3 Rg4 48. h6 Rg8+ 49. Kf7 Rxg3 50. Rh2 Rf3+ 51. Ke8) 43... Kxe5 {[%emt 0:00:04]} 44. Rxd2 {[%emt 0:00:02]} Rxe4 {[%emt 0:00:01]} 45. Kxg7 {[%emt 0:00:12]} Rg4+ {[%emt 0:00:01]} 46. Kf7 {[%emt 0:00:03]} Rf4+ {[%emt 0:00:11] [#]} 47. Ke7 $1 {[%emt 0:00:24]} Ra4 {[%emt 0:00:33]} 48. Rf2 {[%emt 0:00:09]} Rh4 {[%emt 0:00:14]} 49. Ra2 {[%emt 0:00:25] Intending Ra5+ and mate.} Kf5 {[%emt 0:00:01]} 50. Ra5+ {[%emt 0:00:05] White mates.} Kg4 {[%emt 0:00:01]} 51. Kf6 {[%emt 0:00:01]} Rh2 {[%emt 0:00:26]} 52. Kg6 {[%emt 0:00:02]} Kh4 {Weighted Error Value: White=0.06 (flawless) /Black=0.63} 1-0